[Event "Late-Titled-Tuesday-Blitz-November-28-2023"]
[Site "Chess.com"]
[Date "2023.11.28"]
[Round "7"]
[White "KNVB"]
[Black "Alimpic"]
[Result "1-0"]
[WhiteElo "2670"]
[BlackElo "2494"]
[TimeControl "180+1"]
[EndTime "15:16:08 PST"]
[Termination "KNVB won on time"]

1. e4 {[%clk 0:03:00.9]} 1... g6 {[%clk 0:02:58.7]} 2. d4 {[%clk 0:02:59.4]}
2... c6 {[%clk 0:02:58.8]} 3. h3 {[%clk 0:02:48.5]} 3... Bg7 {[%clk 0:02:54.9]}
4. Nf3 {[%clk 0:02:48.6]} 4... d5 {[%clk 0:02:46.5]} 5. e5 {[%clk 0:02:48.9]}
5... f6 {[%clk 0:02:44.8]} 6. Bd3 {[%clk 0:02:42.7]} 6... Nh6 {[%clk 0:02:41.3]}
7. O-O {[%clk 0:02:29.3]} 7... O-O {[%clk 0:02:38.4]} 8. Re1 {[%clk 0:02:24.8]}
8... Bf5 {[%clk 0:02:12.4]} 9. Bxh6 {[%clk 0:02:15.5]} 9... Bxh6 {[%clk
0:01:57.7]} 10. Bxf5 {[%clk 0:02:14.9]} 10... gxf5 {[%clk 0:01:58.6]} 11. e6
{[%clk 0:02:15.1]} 11... Qe8 {[%clk 0:01:53.2]} 12. Nh4 {[%clk 0:02:12.1]} 12...
f4 {[%clk 0:01:44.3]} 13. Nf5 {[%clk 0:02:00.4]} 13... Bg5 {[%clk 0:00:57.7]}
14. h4 {[%clk 0:01:59.3]} 14... Bxh4 {[%clk 0:00:57.3]} 15. Nxh4 {[%clk
0:01:56.8]} 15... Kh8 {[%clk 0:00:54.5]} 16. Nc3 {[%clk 0:01:24.8]} 16... Rg8
{[%clk 0:00:52.3]} 17. Qf3 {[%clk 0:01:25.4]} 17... Na6 {[%clk 0:00:49.1]} 18.
Ne2 {[%clk 0:01:23.6]} 18... Rg5 {[%clk 0:00:40.8]} 19. Nxf4 {[%clk 0:01:22.4]}
19... Qg8 {[%clk 0:00:39.6]} 20. g3 {[%clk 0:00:53.7]} 20... Nc7 {[%clk
0:00:36.3]} 21. Kg2 {[%clk 0:00:48.9]} 21... Nb5 {[%clk 0:00:34.9]} 22. c3
{[%clk 0:00:42.9]} 22... Nd6 {[%clk 0:00:34.5]} 23. Rh1 {[%clk 0:00:41.9]} 23...
Ne4 {[%clk 0:00:30.5]} 24. Rh2 {[%clk 0:00:25.8]} 24... Qg7 {[%clk 0:00:20.5]}
25. Rah1 {[%clk 0:00:25]} 25... Kg8 {[%clk 0:00:20.5]} 26. Rh3 {[%clk
0:00:12.4]} 26... Nd2 {[%clk 0:00:19.6]} 27. Qd3 {[%clk 0:00:05.1]} 27... Ne4
{[%clk 0:00:20.5]} 28. Nf3 {[%clk 0:00:04.7]} 28... Rg4 {[%clk 0:00:17.8]} 29.
Nd2 {[%clk 0:00:04.7]} 29... f5 {[%clk 0:00:16.8]} 30. Rxh7 {[%clk 0:00:02.9]}
30... Qxh7 {[%clk 0:00:15.5]} 31. Rxh7 {[%clk 0:00:03.8]} 31... Kxh7 {[%clk
0:00:16.2]} 32. Nxe4 {[%clk 0:00:03.9]} 32... fxe4 {[%clk 0:00:17.1]} 33. Qe2
{[%clk 0:00:03.9]} 33... Rag8 {[%clk 0:00:15.1]} 34. Nh3 {[%clk 0:00:02.3]}
34... R8g6 {[%clk 0:00:08.9]} 35. Ng1 {[%clk 0:00:01.8]} 35... Kg7 {[%clk
0:00:08.2]} 36. Qe3 {[%clk 0:00:02.1]} 36... Kf6 {[%clk 0:00:08.3]} 37. Ne2
{[%clk 0:00:02.2]} 37... R6g5 {[%clk 0:00:05]} 38. f3 {[%clk 0:00:02.5]} 38...
exf3+ {[%clk 0:00:04.4]} 39. Qxf3+ {[%clk 0:00:02.5]} 39... Kxe6 {[%clk
0:00:04.9]} 40. Qe3+ {[%clk 0:00:02.6]} 40... Kd7 {[%clk 0:00:05.2]} 41. Kf3
{[%clk 0:00:02.6]} 41... Rg7 {[%clk 0:00:03.6]} 42. b3 {[%clk 0:00:02.9]} 42...
Re4 {[%clk 0:00:03.9]} 43. Qd3 {[%clk 0:00:02.6]} 43... Rf7+ {[%clk 0:00:04.6]}
44. Kg2 {[%clk 0:00:02.1]} 44... Rf6 {[%clk 0:00:04.1]} 45. Nf4 {[%clk
0:00:02.4]} 45... Rf8 {[%clk 0:00:03.2]} 46. c4 {[%clk 0:00:02.8]} 46... Rg8
{[%clk 0:00:03.3]} 47. Kf3 {[%clk 0:00:02.9]} 47... Rf8 {[%clk 0:00:03.6]} 48.
cxd5 {[%clk 0:00:03.1]} 48... cxd5 {[%clk 0:00:03.9]} 49. Qb5+ {[%clk
0:00:03.3]} 49... Kc8 {[%clk 0:00:03]} 50. Qxd5 {[%clk 0:00:02.9]} 50... Re1
{[%clk 0:00:02.8]} 51. Qc5+ {[%clk 0:00:02.9]} 51... Kb8 {[%clk 0:00:02.9]} 52.
Kf2 {[%clk 0:00:02.9]} 52... Ra1 {[%clk 0:00:02.7]} 53. Qxe7 {[%clk 0:00:02.6]}
53... Rxa2+ {[%clk 0:00:03]} 54. Kf3 {[%clk 0:00:03]} 54... Rc8 {[%clk
0:00:03.9]} 55. Qd6+ {[%clk 0:00:03.3]} 55... Ka8 {[%clk 0:00:04.2]} 56. Nd5
{[%clk 0:00:03.9]} 1-0

[Event "Late-Titled-Tuesday-Blitz-November-28-2023"]
[Site "Chess.com"]
[Date "2023.11.28"]
[Round "7"]
[White "K_A_S_T_O_R"]
[Black "FairChess_on_YouTube"]
[Result "0-1"]
[WhiteElo "2897"]
[BlackElo "3085"]
[TimeControl "180+1"]
[EndTime "15:16:09 PST"]
[Termination "FairChess_on_YouTube won on time"]

1. e4 {[%clk 0:03:00.9]} 1... e6 {[%clk 0:02:58.2]} 2. d4 {[%clk 0:03:00]} 2...
d5 {[%clk 0:02:58.8]} 3. Nc3 {[%clk 0:03:00.2]} 3... Bb4 {[%clk 0:02:57.2]} 4.
e5 {[%clk 0:03:00]} 4... c5 {[%clk 0:02:56.5]} 5. Bd2 {[%clk 0:02:59.9]} 5... a6
{[%clk 0:02:50.2]} 6. Nce2 {[%clk 0:02:57.4]} 6... Nc6 {[%clk 0:02:46.9]} 7.
Bxb4 {[%clk 0:02:43.9]} 7... cxb4 {[%clk 0:02:46.7]} 8. Nf3 {[%clk 0:02:42.2]}
8... Nge7 {[%clk 0:02:46.3]} 9. Nf4 {[%clk 0:02:41.5]} 9... Qb6 {[%clk
0:02:38.8]} 10. Bd3 {[%clk 0:02:34.7]} 10... Bd7 {[%clk 0:02:38.2]} 11. c3
{[%clk 0:02:27.7]} 11... bxc3 {[%clk 0:02:28.1]} 12. bxc3 {[%clk 0:02:28.1]}
12... Ng6 {[%clk 0:02:26.9]} 13. Nh5 {[%clk 0:02:26.1]} 13... O-O {[%clk
0:02:26.4]} 14. O-O {[%clk 0:02:20.8]} 14... Rac8 {[%clk 0:02:25.6]} 15. Rb1
{[%clk 0:02:15.1]} 15... Qc7 {[%clk 0:02:24.1]} 16. Qd2 {[%clk 0:02:14.1]} 16...
Nce7 {[%clk 0:02:23.7]} 17. Rfc1 {[%clk 0:02:13]} 17... h6 {[%clk 0:02:06.2]}
18. h4 {[%clk 0:02:02.4]} 18... Bb5 {[%clk 0:02:00]} 19. Bxb5 {[%clk 0:01:57.1]}
19... axb5 {[%clk 0:02:00.9]} 20. Rxb5 {[%clk 0:01:57.3]} 20... Nf5 {[%clk
0:02:01.2]} 21. g3 {[%clk 0:01:52]} 21... Ra8 {[%clk 0:01:59]} 22. Rcb1 {[%clk
0:01:49]} 22... Ra7 {[%clk 0:01:58.5]} 23. R1b2 {[%clk 0:01:44.3]} 23... Rc8
{[%clk 0:01:57.9]} 24. R5b3 {[%clk 0:01:43.8]} 24... Nfe7 {[%clk 0:01:37.2]} 25.
Kg2 {[%clk 0:01:36.8]} 25... Nc6 {[%clk 0:01:36.7]} 26. Qd3 {[%clk 0:01:11.2]}
26... Na5 {[%clk 0:01:33.2]} 27. Ra3 {[%clk 0:01:08]} 27... Ra6 {[%clk
0:01:25.6]} 28. Rb4 {[%clk 0:01:05.5]} 28... Rc6 {[%clk 0:01:16.6]} 29. Qb5
{[%clk 0:00:56.1]} 29... b6 {[%clk 0:01:15.7]} 30. Rb1 {[%clk 0:00:51.8]} 30...
Nc4 {[%clk 0:01:10.2]} 31. Ra6 {[%clk 0:00:49.6]} 31... Qe7 {[%clk 0:01:05]} 32.
Qb3 {[%clk 0:00:43.3]} 32... Qb7 {[%clk 0:01:02.9]} 33. Qb5 {[%clk 0:00:41.9]}
33... Ra8 {[%clk 0:00:58.4]} 34. Rxa8+ {[%clk 0:00:40.5]} 34... Qxa8 {[%clk
0:00:59.3]} 35. Qb3 {[%clk 0:00:38.5]} 35... Rc7 {[%clk 0:00:56.9]} 36. a4
{[%clk 0:00:36.6]} 36... Ra7 {[%clk 0:00:57]} 37. Ra1 {[%clk 0:00:34.7]} 37...
Ra5 {[%clk 0:00:57.1]} 38. Rb1 {[%clk 0:00:25.4]} 38... Rxa4 {[%clk 0:00:55.2]}
39. Re1 {[%clk 0:00:18.6]} 39... Ra2 {[%clk 0:00:54]} 40. Qb1 {[%clk 0:00:15.9]}
40... Qa3 {[%clk 0:00:50.9]} 41. Qd3 {[%clk 0:00:16.1]} 41... Qb2 {[%clk
0:00:43.3]} 42. Rf1 {[%clk 0:00:15.8]} 42... b5 {[%clk 0:00:33.7]} 43. Nf4
{[%clk 0:00:15.7]} 43... Ne7 {[%clk 0:00:32.2]} 44. Nh3 {[%clk 0:00:14.2]} 44...
Nf5 {[%clk 0:00:32.1]} 45. Re1 {[%clk 0:00:10.8]} 45... h5 {[%clk 0:00:24.9]}
46. Nfg5 {[%clk 0:00:08.9]} 46... g6 {[%clk 0:00:23.8]} 47. Qf3 {[%clk 0:00:09]}
47... Qd2 {[%clk 0:00:21.7]} 48. Rb1 {[%clk 0:00:07.2]} 48... Nce3+ {[%clk
0:00:21.8]} 49. Kg1 {[%clk 0:00:07.6]} 49... Ng4 {[%clk 0:00:20.4]} 50. Qf4
{[%clk 0:00:08.1]} 50... Qd3 {[%clk 0:00:19.9]} 51. Re1 {[%clk 0:00:03.7]} 51...
Qxc3 {[%clk 0:00:19.4]} 52. Rc1 {[%clk 0:00:03.3]} 52... Ra1 {[%clk 0:00:17]}
53. Rxa1 {[%clk 0:00:02.7]} 53... Qxa1+ {[%clk 0:00:17.9]} 54. Kg2 {[%clk
0:00:03.3]} 54... Qxd4 {[%clk 0:00:18.1]} 55. Qc1 {[%clk 0:00:02.5]} 55... Qxe5
{[%clk 0:00:13.7]} 56. Qc8+ {[%clk 0:00:02.2]} 56... Kg7 {[%clk 0:00:14.2]} 57.
Qd7 {[%clk 0:00:02.8]} 57... Ngh6 {[%clk 0:00:13.2]} 58. Nf4 {[%clk 0:00:02.5]}
58... Nd4 {[%clk 0:00:10.9]} 59. Qe8 {[%clk 0:00:01.2]} 59... Qe4+ {[%clk
0:00:10.6]} 0-1

[Event "Late-Titled-Tuesday-Blitz-November-28-2023"]
[Site "Chess.com"]
[Date "2023.11.28"]
[Round "7"]
[White "Ducke13"]
[Black "Mariia89"]
[Result "1-0"]
[WhiteElo "2449"]
[BlackElo "2151"]
[TimeControl "180+1"]
[EndTime "15:16:14 PST"]
[Termination "Ducke13 won on time"]

1. d4 {[%clk 0:02:59.7]} 1... Nf6 {[%clk 0:02:59]} 2. g3 {[%clk 0:02:59.7]} 2...
c5 {[%clk 0:02:59.7]} 3. d5 {[%clk 0:02:59.3]} 3... d6 {[%clk 0:02:59.9]} 4. c4
{[%clk 0:02:59.2]} 4... b5 {[%clk 0:03:00.3]} 5. cxb5 {[%clk 0:02:58.1]} 5... a6
{[%clk 0:02:56.8]} 6. bxa6 {[%clk 0:02:58.2]} 6... Bxa6 {[%clk 0:02:57.7]} 7.
Nc3 {[%clk 0:02:56.9]} 7... g6 {[%clk 0:02:57.6]} 8. Nf3 {[%clk 0:02:56.4]} 8...
Bg7 {[%clk 0:02:58]} 9. Bg2 {[%clk 0:02:57.1]} 9... O-O {[%clk 0:02:58.5]} 10.
O-O {[%clk 0:02:57.4]} 10... Nbd7 {[%clk 0:02:57.4]} 11. Rb1 {[%clk 0:02:57.9]}
11... Qa5 {[%clk 0:02:56.1]} 12. Bd2 {[%clk 0:02:57.1]} 12... Rfb8 {[%clk
0:02:55.9]} 13. Qc2 {[%clk 0:02:46.9]} 13... Bb7 {[%clk 0:02:20]} 14. a4 {[%clk
0:02:37.3]} 14... Ng4 {[%clk 0:02:09.2]} 15. b3 {[%clk 0:02:30.6]} 15... Nge5
{[%clk 0:02:04.4]} 16. Nb5 {[%clk 0:02:24.8]} 16... Qb6 {[%clk 0:02:03.6]} 17.
Ne1 {[%clk 0:02:22.7]} 17... Ba6 {[%clk 0:02:00.5]} 18. Nc3 {[%clk 0:02:18.7]}
18... Ng4 {[%clk 0:01:51.4]} 19. h3 {[%clk 0:02:15.3]} 19... Ngf6 {[%clk
0:01:35.5]} 20. Nd3 {[%clk 0:02:13.9]} 20... Ne8 {[%clk 0:01:32.4]} 21. Kh2
{[%clk 0:02:01.7]} 21... Nc7 {[%clk 0:01:31]} 22. h4 {[%clk 0:01:56.7]} 22... h5
{[%clk 0:01:29.7]} 23. f4 {[%clk 0:01:52.8]} 23... Bb7 {[%clk 0:01:20.1]} 24. e4
{[%clk 0:01:50.5]} 24... e5 {[%clk 0:01:18.7]} 25. f5 {[%clk 0:01:45.2]} 25...
Bc8 {[%clk 0:01:16.5]} 26. fxg6 {[%clk 0:01:42.7]} 26... fxg6 {[%clk 0:01:16.1]}
27. Bh3 {[%clk 0:01:40.5]} 27... Nf6 {[%clk 0:01:16.1]} 28. Bxc8 {[%clk
0:01:11.4]} 28... Rxc8 {[%clk 0:01:16.7]} 29. Rf3 {[%clk 0:01:09.2]} 29... Nce8
{[%clk 0:01:12.2]} 30. Nb5 {[%clk 0:01:05.3]} 30... Ng4+ {[%clk 0:01:10.8]} 31.
Kg2 {[%clk 0:01:01.6]} 31... Nef6 {[%clk 0:01:11.2]} 32. Nb2 {[%clk 0:00:59.6]}
32... Rd8 {[%clk 0:00:45.8]} 33. Nc4 {[%clk 0:00:58.9]} 33... Qa6 {[%clk
0:00:44.2]} 34. Nc7 {[%clk 0:00:57.1]} 34... Qa7 {[%clk 0:00:44.2]} 35. Nxa8
{[%clk 0:00:50.1]} 35... Qxa8 {[%clk 0:00:45.1]} 36. a5 {[%clk 0:00:43.5]} 36...
Qa6 {[%clk 0:00:39.7]} 37. Bg5 {[%clk 0:00:39.4]} 37... Rb8 {[%clk 0:00:37]} 38.
Rbf1 {[%clk 0:00:38.5]} 38... Nh7 {[%clk 0:00:19.4]} 39. Be7 {[%clk 0:00:35.6]}
39... Bf8 {[%clk 0:00:16.7]} 40. Bxf8 {[%clk 0:00:14.4]} 40... Rxf8 {[%clk
0:00:16.6]} 41. Rxf8+ {[%clk 0:00:14.3]} 41... Nxf8 {[%clk 0:00:17.5]} 42. Qd2
{[%clk 0:00:14.3]} 42... Qb5 {[%clk 0:00:12.7]} 43. Nxd6 {[%clk 0:00:11.1]}
43... Qxb3 {[%clk 0:00:12.7]} 44. Rf3 {[%clk 0:00:09.6]} 44... Qb1 {[%clk
0:00:11.8]} 45. a6 {[%clk 0:00:08]} 45... Qa1 {[%clk 0:00:11]} 46. Qe2 {[%clk
0:00:05]} 46... Nd7 {[%clk 0:00:08.1]} 47. Ne8 {[%clk 0:00:04]} 47... c4 {[%clk
0:00:06]} 48. d6 {[%clk 0:00:03.3]} 48... c3 {[%clk 0:00:06]} 49. Nc7 {[%clk
0:00:03.3]} 49... c2 {[%clk 0:00:06]} 50. Qxc2 {[%clk 0:00:02.8]} 50... Qd4
{[%clk 0:00:05.8]} 51. Qe2 {[%clk 0:00:03]} 51... Nc5 {[%clk 0:00:05]} 52. a7
{[%clk 0:00:03]} 52... Nxe4 {[%clk 0:00:05.2]} 53. a8=Q+ {[%clk 0:00:03.4]}
53... Kg7 {[%clk 0:00:05.5]} 54. Qaxe4 {[%clk 0:00:04.3]} 54... Qxe4 {[%clk
0:00:04.3]} 55. Qxe4 {[%clk 0:00:05.2]} 1-0

[Event "Late-Titled-Tuesday-Blitz-November-28-2023"]
[Site "Chess.com"]
[Date "2023.11.28"]
[Round "7"]
[White "andrzej"]
[Black "Dino_Ballecer"]
[Result "1/2-1/2"]
[WhiteElo "2467"]
[BlackElo "2574"]
[TimeControl "180+1"]
[EndTime "15:16:58 PST"]
[Termination "Game drawn - insufficient material"]

1. e4 {[%clk 0:03:00.9]} 1... c5 {[%clk 0:02:59.6]} 2. Nf3 {[%clk 0:03:01.2]}
2... d6 {[%clk 0:02:59.5]} 3. d4 {[%clk 0:03:01.7]} 3... cxd4 {[%clk 0:02:59.5]}
4. Nxd4 {[%clk 0:03:02.6]} 4... Nf6 {[%clk 0:02:59.4]} 5. Nc3 {[%clk 0:03:03.2]}
5... g6 {[%clk 0:02:59.8]} 6. Be3 {[%clk 0:03:02.6]} 6... Bg7 {[%clk 0:02:59.5]}
7. f3 {[%clk 0:03:02.1]} 7... O-O {[%clk 0:03:00.1]} 8. Qd2 {[%clk 0:03:02.7]}
8... Nc6 {[%clk 0:02:59.3]} 9. O-O-O {[%clk 0:03:01.9]} 9... d5 {[%clk
0:02:57.9]} 10. exd5 {[%clk 0:03:01.9]} 10... Nxd5 {[%clk 0:02:57.5]} 11. Nxc6
{[%clk 0:03:02.3]} 11... bxc6 {[%clk 0:02:55.7]} 12. Bd4 {[%clk 0:03:02.9]}
12... Bxd4 {[%clk 0:02:49.6]} 13. Qxd4 {[%clk 0:03:02.7]} 13... Qb6 {[%clk
0:02:49.3]} 14. Na4 {[%clk 0:03:01.4]} 14... Qa5 {[%clk 0:02:48.8]} 15. b3
{[%clk 0:02:49.4]} 15... Be6 {[%clk 0:02:47.8]} 16. Qc5 {[%clk 0:02:46]} 16...
Qc7 {[%clk 0:02:46.7]} 17. g3 {[%clk 0:02:45.6]} 17... Rfd8 {[%clk 0:02:30.1]}
18. Bd3 {[%clk 0:02:42.2]} 18... Qe5 {[%clk 0:02:27.7]} 19. Kb1 {[%clk
0:02:33.7]} 19... Rab8 {[%clk 0:02:25.2]} 20. Rhe1 {[%clk 0:02:26.7]} 20... Qf6
{[%clk 0:02:24.5]} 21. f4 {[%clk 0:02:14.7]} 21... Rb4 {[%clk 0:02:18.9]} 22.
Bc4 {[%clk 0:02:02.2]} 22... Rdb8 {[%clk 0:02:09.5]} 23. Bxd5 {[%clk 0:01:58.3]}
23... cxd5 {[%clk 0:02:07.6]} 24. Nb2 {[%clk 0:01:51.1]} 24... a5 {[%clk
0:01:54.9]} 25. Qxa5 {[%clk 0:01:48.6]} 25... R4b7 {[%clk 0:01:43.5]} 26. Nd3
{[%clk 0:01:45.5]} 26... Rb5 {[%clk 0:01:24.3]} 27. Qc7 {[%clk 0:01:38]} 27...
Ra8 {[%clk 0:01:17.6]} 28. Qe5 {[%clk 0:01:32.6]} 28... Rba5 {[%clk 0:01:08.3]}
29. Qxf6 {[%clk 0:01:31.2]} 29... exf6 {[%clk 0:01:09.2]} 30. a4 {[%clk
0:01:26.3]} 30... Rb8 {[%clk 0:01:08.5]} 31. Kb2 {[%clk 0:01:21.2]} 31... Rxa4
{[%clk 0:01:07.6]} 32. Nc5 {[%clk 0:01:20.2]} 32... Ra5 {[%clk 0:01:01.8]} 33.
Nxe6 {[%clk 0:01:19]} 33... fxe6 {[%clk 0:01:02.7]} 34. Rxe6 {[%clk 0:01:19.5]}
34... Rba8 {[%clk 0:00:58.5]} 35. Rxf6 {[%clk 0:01:17.4]} 35... Ra2+ {[%clk
0:00:58]} 36. Kc3 {[%clk 0:01:17.2]} 36... Rc8+ {[%clk 0:00:57.2]} 37. Kb4
{[%clk 0:01:16.9]} 37... Rb8+ {[%clk 0:00:42.5]} 38. Kc3 {[%clk 0:01:12.1]}
38... Rc8+ {[%clk 0:00:42.1]} 39. Kd4 {[%clk 0:01:00.7]} 39... Raxc2 {[%clk
0:00:35.9]} 40. Rd3 {[%clk 0:00:49.1]} 40... Rxh2 {[%clk 0:00:31.6]} 41. Rd6
{[%clk 0:00:48.9]} 41... Kf7 {[%clk 0:00:22.8]} 42. Rxd5 {[%clk 0:00:48]} 42...
Ke7 {[%clk 0:00:20.4]} 43. Ke4 {[%clk 0:00:45.7]} 43... Rc7 {[%clk 0:00:16.2]}
44. Kf3 {[%clk 0:00:44.9]} 44... Rb2 {[%clk 0:00:14.9]} 45. Re3+ {[%clk
0:00:44.3]} 45... Kf7 {[%clk 0:00:14.6]} 46. Rde5 {[%clk 0:00:43.8]} 46... Rb7
{[%clk 0:00:14.1]} 47. Kg4 {[%clk 0:00:33.1]} 47... R2xb3 {[%clk 0:00:13.4]} 48.
Rxb3 {[%clk 0:00:30.4]} 48... Rxb3 {[%clk 0:00:13]} 49. Ra5 {[%clk 0:00:30.3]}
49... Kg7 {[%clk 0:00:10.1]} 50. Kh4 {[%clk 0:00:29.9]} 50... Rb7 {[%clk
0:00:09.3]} 51. Kg4 {[%clk 0:00:28.5]} 51... Rf7 {[%clk 0:00:08.7]} 52. Ra6
{[%clk 0:00:28.1]} 52... h6 {[%clk 0:00:08.7]} 53. Kh4 {[%clk 0:00:26.3]} 53...
Kh7 {[%clk 0:00:09]} 54. Rd6 {[%clk 0:00:25.4]} 54... Kg7 {[%clk 0:00:09.2]} 55.
Re6 {[%clk 0:00:25.5]} 55... Rd7 {[%clk 0:00:09.2]} 56. g4 {[%clk 0:00:23.4]}
56... Rd4 {[%clk 0:00:06.5]} 57. Kg3 {[%clk 0:00:23.2]} 57... Rd3+ {[%clk
0:00:06.3]} 58. Kg2 {[%clk 0:00:23.3]} 58... Kf7 {[%clk 0:00:05]} 59. Re2 {[%clk
0:00:22.4]} 59... Kf6 {[%clk 0:00:04.2]} 60. Rb2 {[%clk 0:00:22.2]} 60... Rd6
{[%clk 0:00:03.3]} 61. Kf3 {[%clk 0:00:22.1]} 61... g5 {[%clk 0:00:03.4]} 62. f5
{[%clk 0:00:21.6]} 62... Rd3+ {[%clk 0:00:03.1]} 63. Ke4 {[%clk 0:00:21]} 63...
Rg3 {[%clk 0:00:02.6]} 64. Rb6+ {[%clk 0:00:21.2]} 64... Kg7 {[%clk 0:00:02.9]}
65. f6+ {[%clk 0:00:19.3]} 65... Kg6 {[%clk 0:00:02.7]} 66. f7+ {[%clk
0:00:13.2]} 66... Kxf7 {[%clk 0:00:02.7]} 67. Rxh6 {[%clk 0:00:09.4]} 67... Kg7
{[%clk 0:00:02.8]} 68. Ra6 {[%clk 0:00:07.4]} 68... Rxg4+ {[%clk 0:00:02.6]} 69.
Kf5 {[%clk 0:00:07.8]} 69... Rg1 {[%clk 0:00:02.5]} 70. Rg6+ {[%clk 0:00:07.9]}
70... Kf7 {[%clk 0:00:03]} 71. Rh6 {[%clk 0:00:07.6]} 71... g4 {[%clk
0:00:02.7]} 72. Kf4 {[%clk 0:00:05.1]} 72... Kg7 {[%clk 0:00:02.2]} 73. Rh4
{[%clk 0:00:04.4]} 73... Kf6 {[%clk 0:00:02.4]} 74. Rxg4 {[%clk 0:00:04.3]}
74... Rxg4+ {[%clk 0:00:03.2]} 75. Kxg4 {[%clk 0:00:04.6]} 1/2-1/2